Cogmind - Beta 16 --- EXPLORER MODE // 2026.02.09 @ 09:34:57 Player: K.K.Y. Result: Destroyed by Y-64 Sentinel with Wave Gun Performance ------------- Evolutions (5) 2500 Regions Visited (5) 1000 Robots Destroyed (112) 560 Value Destroyed (4860) 4860 Prototype IDs (18) 360 Alien Tech Used (0) 0 Bonus (2459) 2459 TOTAL SCORE: 11739 Bonus ------- Follower Combat Kills 459 Delivered SUBCON Basin 2000 Cogmind --------- Core Integrity 0/1000 Matter 133/300 Energy 127/150 System Corruption 13% Temperature Cool (78) Movement Hovering (540) Ox8 Location -5/Factory Parts ------- > --- POWER (2) -------- Micro Fission Core > --- PROPULSION (4) --- Antigrav System > --- UTILITY (10) ----- Huge Storage Unit > --- WEAPON (2) ------- Wave Gun > --- INVENTORY (25) --- Experimental Heat Sink IFF Parser Advanced Terrain Scan Processor Makeshift Transmission Jammer Advanced ECM Suite Improved Medium Armor Plating Medium Reflective Plating Improved Focal Shield Improved Thermal Shield EM Disruption Field Makeshift Hacking Suite Authchip [Propulsion] Authchip [Storage] Improved Component Analysis Suite Tech Extrapolator Corruption Screen Drone Bay (2/2) Long-range Proton Cannon Heavy Plasma Cannon Improved Datajack Improved Remote Datajack Improved Plasma Cutter Multitool Peak State ------------ > --- POWER ------------ Neutrino Core Meta Core > --- PROPULSION ------- Armored Treads Medium Treads Medium Treads Improved Medium Treads Armored Medium Treads > --- UTILITY ---------- Improved Cooling System Advanced Cooling System Humpback Improved Sensor Array Improved Transmission Jammer Improved Medium Armor Plating Improved Medium Armor Plating Makeshift Light Armor Plating EM Disruption Field Hacking Suite > --- WEAPON ----------- Gauss Cannon Mass Driver Chainsword > --- INVENTORY -------- Light Nuclear Core Improved Deuterium Engine Light Angular Momentum Engine Improved Cooling System High-capacity Storage Unit Sensor Array Improved Signal Interpreter Improved Terrain Scanner Advanced Terrain Scan Processor Core Analyzer Armor Integrity Analyzer Makeshift Transmission Jammer Advanced ECM Suite Hardened Heavy Armor Plating Improved Thermal Shield Makeshift Hacking Suite Authchip [Propulsion] Authchip [Storage] Component Analysis Suite Tech Extrapolator Corruption Screen System Restoration Module Makeshift System Restoration Module Drone Bay Plasma Rifle Variable Charge Gun Plasma Cannon Advanced Plasma Cannon Flak Gun Coil Gun Advanced Assault Cannon Mining Laser Multitool Power Sword [Rating: 109] Favorites ----------- Power Meta Core Engine Ion Engine Power Core Meta Core Reactor Fusion Reactor Propulsion Armored Treads Treads Armored Treads Hover Unit Antigrav System Utility Improved Heat Sink Device Improved Heat Sink Storage Humpback Processor Core Analyzer Hackware Hacking Suite Protection Makeshift Light Armor Plating Weapon Improved Light Cannon Energy Gun Particle Gun Energy Cannon Advanced Plasma Cannon Ballistic Gun Precision Assault Rifle Ballistic Cannon Improved Light Cannon Special Weapon Mining Laser Slashing Weapon Chainsword Build | -11 -10 -10 -7 -7 -5 ------- Run | Yrd Mat Sub Rec Scr Fac Slots Evolved 11 | . 1 . . . 10 Power 1 | . . . . . 1 Propulsion 2 | . . . . . 2 Utility 8 | . 1 . . . 7 Weapon . | . . . . . . Parts Attached 87 | 6 7 11 6 5 52 Power 11 | 1 . 2 . . 8 Engine 3 | 1 . . . . 2 Core 7 | . . 2 . . 5 Reactor 1 | . . . . . 1 Propulsion 14 | 2 1 3 3 . 5 Treads 12 | 2 1 3 3 . 3 Leg . | . . . . . . Wheel . | . . . . . . Hover 2 | . . . . . 2 Flight . | . . . . . . Utility 35 | 1 3 3 . 2 26 Device 20 | . 2 1 . 2 15 Storage 5 | 1 1 1 . . 2 Processor 1 | . . . . . 1 Hackware 1 | . . . . . 1 Protection 8 | . . 1 . . 7 Artifact . | . . . . . . Weapon 27 | 2 3 3 3 3 13 Energy Gun 5 | 2 1 . . . 2 Energy Cannon 7 | . 1 . . . 6 Ballistic Gun 1 | . . . . . 1 Ballistic Cannon 11 | . . 3 2 3 3 Launcher . | . . . . . . Special Weapon 2 | . 1 . . . 1 Impact Weapon . | . . . . . . Slashing Weapon 1 | . . . 1 . . Piercing Weapon . | . . . . . . Special Melee Weapon . | . . . . . . Unidentified Prototypes 4 | . . 1 . . 3 Parts Lost 44 | . . 4 1 . 39 Power 5 | . . 1 . . 4 Propulsion 7 | . . 1 . . 6 Utility 21 | . . 1 . . 20 Weapon 11 | . . 1 1 . 9 Highest Loss Streak 5 | . . 2 1 . 5 To Critical Strikes 1 | . . 1 . . . Average Backups 22 | 1 9 14 22 34 27 Power 1 | . . 1 1 3 1 Propulsion . | . . . . . . Utility 13 | . 1 6 14 23 17 Weapon 5 | . 7 6 4 7 5 Tool/Special . | . . . . . . Unused Backups 49 | . 1 7 6 5 30 Power 3 | . . . 1 . 2 Propulsion . | . . . . . . Utility 25 | . 1 . 3 3 18 Weapon 18 | . . 7 2 2 7 Tool/Special 3 | . . . . . 3 Average Slot Usage (%) 82 | . 95 82 82 90 76 Engine 1 | . 12 3 . . 1 Core 6 | . . 4 9 9 5 Treads 21 | . 25 22 26 27 14 Device 15 | . 20 16 8 9 23 Storage 8 | . 12 11 9 9 4 Hackware 1 | . . . . . 3 Protection 5 | . . 1 9 9 5 Energy Cannon 1 | . 9 . . . 4 Ballistic Cannon 13 | . . 22 18 18 4 Slashing Weapon 1 | . . . 1 9 1 Peak Build Rating 109 | 6 13 51 56 58 109 Average Rating 51 | 4 11 20 46 54 85 On Entrance 30 | . 6 13 51 52 58 Avg Prop Armor Cover (%) . | . . . . . . Naked Turns . | . . . . . . Heaviest Build 271 | 19 33 237 222 229 271 Greatest Support 133 | 40 40 40 70 70 133 Greatest Overweight (x) 29 | . . 5 5 3 29 Average Overweight (x) 1 | . . . 3 3 1 Largest Inventory Capacity 35 | 10 15 35 35 35 35 Average Capacity 27 | 8 13 16 35 35 28 Most Carried 35 | 5 15 30 35 35 35 Average Carried 24 | 1 9 15 25 34 27 Final Capacity 35 | 10 15 35 35 35 25 Final Carried 35 | 2 15 30 35 35 23 Class Distribution -------------------- 54% | Hauler-Mutant 45% | Hacker-Mutant Dominant Class ---------------- Hacker-Mutant | -10/Materials Hacker-Mutant | -10/Subcaves Hauler-Mutant | -7/Recycling Hauler-Mutant | -7/Scraptown Hacker-Mutant | -5/Factory Resources | -11 -10 -10 -7 -7 -5 ----------- Run | Yrd Mat Sub Rec Scr Fac Matter Collected 3182 | 260 110 864 141 59 1748 Remotely . | . . . . . . Salvage Created 4076 | 152 535 381 129 . 2879 Parts 203 | 10 29 32 4 . 128 Haulers Intercepted 2 | . 2 . . . . Recyclers Shooed 2 | . . . 1 . 1 Parts Field Recycled . | . . . . . . Retrieved Matter . | . . . . . . Parts Self-Destructed . | . . . . . . Prevented . | . . . . . . Parts Restored . | . . . . . . Kills | -11 -10 -10 -7 -7 -5 ------- Run | Yrd Mat Sub Rec Scr Fac Combat Hostiles Destroyed 89 | . 10 21 3 . 55 Melee 5 | . . . . . 5 Guns 13 | . 8 . . . 5 Cannons 67 | . 2 21 3 . 41 AOE 1 | . . . . . 1 Classes Destroyed 18 | 2 5 4 . . 7 Worker 2 | . . . . . 2 Builder 5 | . 2 . . . 3 Tunneler 3 | 3 . . . . . Hauler 2 | . 2 . . . . Recycler 1 | 1 . . . . . Operator 2 | . . . . . 2 Turret 2 | . . 2 . . . Watcher 5 | . 2 . . . 3 Swarmer 12 | . 4 6 . . 2 Grunt 29 | . 6 . . . 23 Duelist 2 | . . . . . 2 Sentry 7 | . . 1 3 . 3 Specialist 1 | . . . . . 1 Hunter 6 | . . . . . 6 Programmer 18 | . . . . . 18 Behemoth 1 | . . . . . 1 Artisan 1 | . . 1 . . . Subdweller 14 | . . 14 . . . Best Kill Streak 8 | 4 5 8 1 . 7 Combat Bots Only 6 | . 2 6 1 . 5 Max Kills in Single Turn 2 | 1 1 1 1 . 2 Gunslinging . | . . . . . . Exploded 1 | . . . . . 1 Melee 1 | . . . . . 1 Uniques/NPCs Destroyed . | . . . . . . Combat | -11 -10 -10 -7 -7 -5 -------- Run | Yrd Mat Sub Rec Scr Fac Hostile Shots Fired 893 | . 39 122 45 . 687 Missed 257 | . 10 34 17 . 196 Hits 636 | . 29 88 28 . 491 Melee 3 | . . . . . 3 Projectile 633 | . 29 88 28 . 488 AOE 3 | . . . . . 3 Critical Strikes 30 | . 1 2 . . 27 Part Disruptions 3 | . . . . . 3 Damage Taken 8058 | . 198 852 128 . 6880 Core 1146 | . 36 90 7 . 1013 Absorbed by Shields . | . . . . . . Ignored by Resistances 4791 | . 128 530 91 . 4042 Core Remaining (%) 73 | 100 . . . 46 . Volleys Fired 353 | 5 36 96 8 . 208 Largest 2 | 2 2 2 2 . 2 Hottest 315 | 100 160 93 66 . 315 Shots Fired 640 | 10 69 192 16 . 353 Gun 116 | 10 41 . . . 65 Cannon 520 | . 24 192 16 . 288 Launcher . | . . . . . . Special 4 | . 4 . . . . Kinetic 391 | . . 172 16 . 203 Thermal 214 | 10 69 20 . . 115 Explosive . | . . . . . . Electromagnetic 35 | . . . . . 35 Robot Hit Streak 52 | 7 14 52 14 . 35 Robot Miss Streak 4 | . 2 3 1 . 4 Penetration Max 1 | . . . . . 1 Secondary Targets 1 | . 1 . . . . Max Gunslinging Chain 1 | . 1 . . . . Shots Hit Robots 504 | 7 43 137 14 . 303 Core Hits 192 | 5 22 36 5 . 124 Critical Kills 1 | . . . . . 1 Critical Parts Destroyed . | . . . . . . Critical Strikes 35 | 1 3 9 3 . 19 Burn 6 | 1 3 . . . 2 Meltdown 1 | . . . . . 1 Destroy 3 | . . . . . 3 Blast 24 | . . 9 3 . 12 Sever 1 | . . . . . 1 Melee Attacks 19 | . . . . . 19 Impact . | . . . . . . Slashing 19 | . . . . . 19 Piercing . | . . . . . . Sneak Attacks . | . . . . . . Combat Hostiles . | . . . . . . Follow-up Attacks . | . . . . . . Damage Inflicted 13537 | 86 665 2418 302 . 10066 Guns 2057 | 86 440 . . . 1531 Cannons 10517 | . 225 2418 302 . 7572 Explosions 290 | . . . . . 290 Melee 662 | . . . . . 662 Ramming 11 | . . . . . 11 Kinetic 7306 | . . 2206 302 . 4798 Thermal 4866 | 86 665 212 . . 3903 Explosive . | . . . . . . Electromagnetic 692 | . . . . . 692 Impact . | . . . . . . Slashing 662 | . . . . . 662 Piercing . | . . . . . . Highest Corruption 13 | . . . . . 13 Average Corruption 7 | . . . . . 7 Corruption Purged 2 | . . . . . 2 Corruption Blocked . | . . . . . . Effects 164 | . . . . . 164 Message Errors 38 | . . . . . 38 Matter Fused 41 | . . . . . 41 Heat Flow Errors 18 | . . . . . 18 Energy Discharges 14 | . . . . . 14 Parts Rejected 4 | . . . . . 4 Parts Fused 3 | . . . . . 3 Data Loss (minor) 19 | . . . . . 19 Data Loss (major) 5 | . . . . . 5 Misfires 11 | . . . . . 11 Alerts 6 | . . . . . 6 Weapon Failures 5 | . . . . . 5 Overload Shots 10 | . . . . . 10 Overflow Damage 223 | . 5 5 . . 213 Projectiles 173 | . 5 5 . . 163 Explosions 19 | . . . . . 19 Melee 31 | . . . . . 31 Knockbacks 58 | . . 24 2 . 32 Impact 1 | . . . . . 1 Kinetic 56 | . . 23 2 . 31 Secondary 1 | . . 1 . . . Self-Inflicted Damage 182 | . . . . . 182 Shots 3 | . . . . . 3 Rammed 1 | . . . . . 1 Targets Rammed 1 | . . . . . 1 Kicked . | . . . . . . Crushed . | . . . . . . Highest Temperature 386 | 78 294 . 5 . 386 Average Temperature 81 | 28 88 . 5 . 85 Received Heat Transfer 2581 | . 159 255 60 . 2107 Effects 6 | . 5 . . . 1 Energy Bleed 3 | . 3 . . . . Interference 2 | . 2 . . . . Short Circuit 1 | . . . . . 1 Siege Activations . | . . . . . . Martial Activations . | . . . . . . Shielding Activations . | . . . . . . Robots Disrupted . | . . . . . . Combat Hostiles . | . . . . . . Robots Corrupted 2 | . . . . . 2 Combat Hostiles 2 | . . . . . 2 Parts Fried 2 | . . . . . 2 Impact Corruptions . | . . . . . . Robots Melted 1 | . . . . . 1 Combat Hostiles 1 | . . . . . 1 Parts Melted 13 | 2 2 . . . 9 Heat Transferred 8058 | 333 1887 444 . . 5394 Parts Sabotaged . | . . . . . . Parts Stolen . | . . . . . . Parts Stripped . | . . . . . . Power Chain Reactions . | . . . . . . Alert | -11 -10 -10 -7 -7 -5 ------- Run | Yrd Mat Sub Rec Scr Fac Maximum Alert Level 1 | . . . . . 1 Low Security (%) 96 | 100 100 . 100 . 91 Level 1 3 | . . . . . 8 Level 2 . | . . . . . . Level 3 . | . . . . . . Level 4 . | . . . . . . Level 5 . | . . . . . . High Security . | . . . . . . Max Security . | . . . . . . Peak Influence 368 | 10 82 . 36 . 368 Initial . | . . . . . . Average 20 | . 13 . . . 41 Influence Increases 3076 | 20 320 265 206 . 2265 Destroy 0b10 Robot/C 1760 | . 200 180 80 . 1300 Destroy 0b10 Robot/NC 115 | 20 30 . . . 65 Destroy Leader 364 | . 58 10 . . 296 Allied During Kill 14 | . . . 1 . 13 Successful Hack 179 | . 25 . 112 . 42 Select Force Hacks 30 | . . . . . 30 Disable Machine 48 | . . . . . 48 Anti-Garrison Action 150 | . . . . . 150 Destroy Structure 266 | . 7 . 13 . 246 Lose Combat Pursuer 150 | . . 75 . . 75 Influence Decreases 3076 | 20 320 265 206 . 2265 Time Decay 2827 | 20 320 265 193 . 2029 Lost Part 166 | . . . . . 166 Lost Ally 83 | . . . 13 . 70 Squads Dispatched 22 | . 1 . . . 21 Investigation 4 | . 1 . . . 3 Extermination 10 | . . . . . 10 Reinforcement 7 | . . . . . 7 Assault 1 | . . . . . 1 Garrison . | . . . . . . Intercept . | . . . . . . Searches Triggered . | . . . . . . Construction Impeded 2 | . . . . . 2 Haulers Reinforced 1 | . . . . . 1 Active Scanning Responses . | . . . . . . Cargo Convoy Interrupts . | . . . . . . Stealth | -11 -10 -10 -7 -7 -5 --------- Run | Yrd Mat Sub Rec Scr Fac Distress Signals 2 | . . . . . 2 Communications Jammed 2 | . . . . . 2 Distress Signals 2 | . . . . . 2 Times Spotted 140 | . 16 33 4 . 87 Peak Tracking Total 5 | . 3 5 1 . 4 Tactical Retreats 10 | . . 6 . . 4 Traps | -11 -10 -10 -7 -7 -5 ------- Run | Yrd Mat Sub Rec Scr Fac Traps Triggered 1 | . 1 . . . . Indirectly . | . . . . . . Trap Hack Attempts . | . . . . . . Triggered . | . . . . . . Disarmed 5 | . . . . . 5 Reprogrammed . | . . . . . . Reused . | . . . . . . Traps Extracted . | . . . . . . Installed . | . . . . . . Triggered . | . . . . . . Machines | -11 -10 -10 -7 -7 -5 ---------- Run | Yrd Mat Sub Rec Scr Fac Machines Disabled 15 | . . 2 . . 13 Max in Single Turn 4 | . . 1 . . 4 Garrison Access 1 | . . . . . 1 Machines Repaired . | . . . . . . Machines Dismantled . | . . . . . . Machines Sabotaged . | . . . . . . Overloaded Fab Kills . | . . . . . . Hacking | -11 -10 -10 -7 -7 -5 --------- Run | Yrd Mat Sub Rec Scr Fac Machines Accessed 33 | . 6 4 14 . 9 Terminals 17 | . 6 . 6 . 5 Fabricators 2 | . . . . . 2 Repair Stations . | . . . . . . Recycling Units 9 | . . . 8 . 1 Scanalyzers 1 | . . . . . 1 Garrison Access . | . . . . . . Total Hacks 92 | . 25 7 40 . 20 Successful 58 | . 9 7 26 . 16 Failed 34 | . 16 . 14 . 4 Catastrophic 5 | . 3 . 2 . . Database Lockouts . | . . . . . . Manual 44 | . 26 . 12 . 6 Terminals 51 | . 25 . 16 . 10 Fabricators 7 | . . . . . 7 Repair Stations . | . . . . . . Recycling Units 26 | . . . 24 . 2 Scanalyzers 1 | . . . . . 1 Garrison Access . | . . . . . . Terminal Hacks 26 | . 9 7 7 . 3 Record 4 | . . 4 . . . Part Schematic 12 | . 5 . 5 . 2 Robot Schematic 5 | . 4 . 1 . . Robot Analysis 1 | . . . 1 . . Open Door 1 | . . 1 . . . Disarm Traps 1 | . . . . . 1 Proto ID Catalog 1 | . . 1 . . . Release Object 1 | . . 1 . . . Fabricator Hacks 6 | . . . . . 6 Load Schematic 3 | . . . . . 3 Build 3 | . . . . . 3 Repair Station Hacks . | . . . . . . Recycling Unit Hacks 10 | . . . 9 . 1 Retrieve Matter 1 | . . . 1 . . Retrieve Components 9 | . . . 8 . 1 Scanalyzer . | . . . . . . Garrison Access Hacks . | . . . . . . Unauthorized Hacks 16 | . . . 10 . 6 Terminals 7 | . . . 3 . 4 Botnet 7 | . . . 3 . 4 Fabricators . | . . . . . . Repair Stations . | . . . . . . Recycling Units 8 | . . . 7 . 1 Reject 8 | . . . 7 . 1 Scanalyzers 1 | . . . . . 1 Extract 1 | . . . . . 1 Garrison Access . | . . . . . . Data Cores Recovered 2 | . . . . . 2 Used . | . . . . . . Hacking Detections 24 | . 6 . 12 . 6 Full Trace Events 14 | . 6 . 6 . 2 Feedback Events . | . . . . . . Feedback Blocked . | . . . . . . Robot Schematics Acquired 5 | . 4 . 1 . . Robots Built 5 | . . . . . 5 Authchips . | . . . . . . Time 282 | . . . . . 282 Total Robot Build Rating 17 | . . . . . 17 Part Schematics Acquired 23 | . 3 . 5 . 15 Parts Built . | . . . . . . Authchips . | . . . . . . Time . | . . . . . . Total Part Build Rating . | . . . . . . Part Studies Acquired . | . . . . . . Parts Repaired . | . . . . . . Time . | . . . . . . Parts Recycled . | . . . . . . Recycled Matter . | . . . . . . Retrieved Matter . | . . . . . . Retrieved Components 28 | . . . 28 . . Parts Scanalyzed . | . . . . . . Part Schematics Acquired . | . . . . . . Parts Damaged . | . . . . . . Bothacking | -11 -10 -10 -7 -7 -5 ------------ Run | Yrd Mat Sub Rec Scr Fac Used RIF Installer . | . . . . . . Robots Hacked . | . . . . . . Non-combat . | . . . . . . Combat . | . . . . . . Robot Hacks Applied . | . . . . . . Relay Couplers Released . | . . . . . . Fabnet Peak Effective % . | . . . . . . Robots Rewired . | . . . . . . Allies Hacked . | . . . . . . Hacks Repelled . | . . . . . . Allies | -11 -10 -10 -7 -7 -5 -------- Run | Yrd Mat Sub Rec Scr Fac Total Allies 9 | . . 4 . . 5 Largest Group 4 | . . 4 4 1 4 Highest-Rated Group 134 | . . 76 76 19 134 Highest-Rated Ally 40 | . . 19 19 19 40 Total Orders . | . . . . . . Ally Attacks 78 | . . 2 12 . 64 Total Damage 1904 | . . . 307 . 1597 Kills 14 | . . . 1 . 13 Allies Corrupted . | . . . . . . Allies Melted . | . . . . . . Intel | -11 -10 -10 -7 -7 -5 ------- Run | Yrd Mat Sub Rec Scr Fac Active Infowar (turns) 6964 | . 896 1203 . . 4865 Sensors 1325 | . . . . . 1325 Terrain 2769 | . . . . . 2769 Structural 2099 | . 896 1203 . . . Jamming 4151 | . . . . . 4151 Robot Analysis Total 1 | . . . 1 . . Derelict Logs Recovered 6 | . . 3 . 3 . Drone Launches . | . . . . . . Drone Recoveries . | . . . . . . Exploration | -11 -10 -10 -7 -7 -5 ------------- Run | Yrd Mat Sub Rec Scr Fac Turns Passed 19083 | 72 1066 4125 5787 2108 5925 Spaces Moved 6314 | 38 509 2194 1363 518 1692 Core 31 | 15 . . . . 16 Treads 6244 | 23 509 2194 1363 518 1637 Legs . | . . . . . . Wheels . | . . . . . . Hover 39 | . . . . . 39 Flight . | . . . . . . Fastest Speed 50 | 50 160 160 398 398 164 Average Speed 272 | 116 160 173 414 398 285 Slowest Speed 1500 | 160 160 610 610 398 1500 Overloaded Moves . | . . . . . . Propulsion Burnouts . | . . . . . . Robots Hopped . | . . . . . . Potential Cave-ins . | . . . . . . Cave-ins Triggered . | . . . . . . Exploration Rate (%) 62 | 4 91 93 99 44 41 Regions Visited 5 Branch Regions 3 Pre-discovered Areas 1 | . . 1 . . . Known Exits Taken 5 | 1 1 1 1 1 . Unknown Exits Taken . | . . . . . . Scrap Searched 25 | . . 17 . 8 . Spaces Dug 16 | . 4 . . . 12 Terrain Destroyed 129 | . 4 1 1 . 123 Melee . | . . . . . . Projectile 54 | . 4 1 1 . 48 AOE 75 | . . . . . 75 Terrain Rammed . | . . . . . . Walls Destroyed . | . . . . . . Machines Disabled . | . . . . . . Actions | -11 -10 -10 -7 -7 -5 --------- Run | Yrd Mat Sub Rec Scr Fac Total 7553 | 55 683 2332 1497 573 2413 Wait 583 | . 106 4 76 35 362 Move 6309 | 37 508 2193 1362 517 1692 Hop . | . . . . . . Pick Up 122 | 7 17 12 32 7 47 Fast Attach 27 | 1 . 4 1 . 21 Attach 36 | 5 2 2 3 . 24 Detach 8 | . . . 1 . 7 Swap 38 | . 10 7 3 5 13 Drop 57 | . 4 14 11 9 19 Fire 353 | 5 36 96 8 . 208 Melee 19 | . . . . . 19 Ram . | . . . . . . Kick . | . . . . . . Crush 1 | . . . . . 1 Escape Stasis . | . . . . . . Rewire . | . . . . . . Trap . | . . . . . . Miscellaneous . | . . . . . . Route ------- -11/Scrapyard -10/Materials (discovered 5 exits: *Mat x3 / *Min / *Sub) -10/Subcaves (discovered 3 exits: *Mat x2 / *Rec) -7/Recycling (discovered 2 exits: *Fac / *Scr) -7/Scraptown -5/Factory (discovered 3 exits: *Fac x2 / *Ext) History --------- Turn | Location | Event 6 | -11/Scrapyard | Identified exit to Materials 6 | -11/Scrapyard | Discovered exit to Materials (range 16) 73 | -11/Scrapyard | Entered Materials 73 | -10/Materials | Evolved 1 slot: Utility x1 303 | -10/Materials | Build established: Hacker-Mutant 445 | -10/Materials | Identified exit to Materials 445 | -10/Materials | Discovered exit to Materials (range 10) 563 | -10/Materials | Discovered exit to Materials (range 13) 861 | -10/Materials | Identified exit to Mines 861 | -10/Materials | Discovered exit to Mines (range 12) 966 | -10/Materials | Discovered exit to Materials (range 16) 1097 | -10/Materials | Identified exit to Subcaves 1097 | -10/Materials | Discovered exit to Subcaves (range 7) 1139 | -10/Materials | Entered Subcaves 1140 | -10/Subcaves | Approached by a straggling Scientist 1144 | -10/Subcaves | Learned 2 Materials zone layouts 1182 | -10/Subcaves | Shifting Twisted Machinery released Mak. Light Armor Plating 1182 | -10/Subcaves | Shifting Twisted Machinery released Battle Cannon 1219 | -10/Subcaves | Identified exit to Recycling 1219 | -10/Subcaves | Discovered exit to Recycling (range 11) 1433 | -10/Subcaves | Shifting Twisted Machinery released Sub. Shrapnel Launcher 1434 | -10/Subcaves | Shifting Twisted Machinery released Battle Rifle 1490 | -10/Subcaves | Visited Clippyterm 1495 | -10/Subcaves | Learned Factory trap positions 1495 | -10/Subcaves | Learned Factory stockpile data 1573 | -10/Subcaves | Identified exit to Materials 1573 | -10/Subcaves | Discovered exit to Materials (range 12) 1833 | -10/Subcaves | Ambushed by angry Subdweller bent on revenge 1883 | -10/Subcaves | Discovered exit to Materials (range 8) 1907 | -10/Subcaves | Disturbed a concealed Subdweller 2190 | -10/Subcaves | Shifting Twisted Machinery released Piercing Trap 2196 | -10/Subcaves | Shifting Twisted Machinery released Piercing Trap 2399 | -10/Subcaves | Learned location of Mines (-9) 2697 | -10/Subcaves | Ambushed by Subdwellers from Twisted Machinery 2720 | -10/Subcaves | Core integrity fell below 50% 2882 | -10/Subcaves | A swath of the cavern ceiling suddenly collapsed 3105 | -10/Subcaves | Learned 2 Materials zone layouts 3112 | -10/Subcaves | A swath of the cavern ceiling suddenly collapsed 3864 | -10/Subcaves | Disturbed a concealed Subdweller 3990 | -10/Subcaves | Visited 4L-MR0's lab 4010 | -10/Subcaves | Found Meta Core 4011 | -10/Subcaves | Attached Meta Core, gained temporary slots: Propulsion, Utility, Weapon 4225 | -10/Subcaves | Visited triangular shrine 4235 | -10/Subcaves | Found Prototype Device 4235 | -10/Subcaves | Identified V3-11A's Pendant 4240 | -10/Subcaves | Befriended Subdweller 4318 | -10/Subcaves | Disturbed a concealed Subdweller 4320 | -10/Subcaves | Befriended Subdweller 4320 | -10/Subcaves | Befriended Subdweller 4330 | -10/Subcaves | Befriended Subdweller 4973 | -10/Subcaves | Found SUBCON Basin 5264 | -10/Subcaves | Entered Recycling 5264 | -7/Recycling | Accompanied by 4 allies 5286 | -7/Recycling | Build established: Hauler-Mutant 6645 | -7/Recycling | Scanned before Scraplab entrance 6703 | -7/Recycling | Entered Scraplab 7456 | -7/Recycling | Identified exit to Factory 7456 | -7/Recycling | Discovered exit to Factory (range 8) 11047 | -7/Recycling | Identified exit to Scraptown 11047 | -7/Recycling | Discovered exit to Scraptown (range 2) 11051 | -7/Recycling | Entered Scraptown 11051 | -7/Scraptown | Accompanied by 1 ally 11469 | -7/Scraptown | Delivered V3-11A's Pendant to T0-NE2 in exchange for information 11621 | -7/Scraptown | Visited Bundlers 11857 | -7/Scraptown | Visited Awakened 11917 | -7/Scraptown | Visited Cyclists 11961 | -7/Scraptown | Visited TADAMA 11985 | -7/Scraptown | Visited Symbiants 12056 | -7/Scraptown | Visited Cave Peace 12180 | -7/Scraptown | Visited Shadow of the Wyrm 12931 | -7/Scraptown | Scanned Subdweller tech in exchange for log data 12939 | -7/Scraptown | Learned Factory security intel 12947 | -7/Scraptown | Learned Factory terminal intel 12987 | -7/Scraptown | Discovered exit to Factory (range 13) 13159 | -7/Scraptown | Entered Factory 13159 | -5/Factory | Accompanied by 1 ally 13159 | -5/Factory | Evolved 10 slots: Power x1, Propulsion x2, Utility x7 13160 | -5/Factory | Loaded intel: 80 trap records 13163 | -5/Factory | Loaded intel: 28 terminal locations 13926 | -5/Factory | Identified exit to Factory 13926 | -5/Factory | Discovered exit to Factory (range 16) 15267 | -5/Factory | Lost 3 parts (3u) 15461 | -5/Factory | Lost 3 parts (1p2w) 15494 | -5/Factory | Lost 4 parts (3u1w) 15758 | -5/Factory | Build established: Hacker-Mutant 15971 | -5/Factory | Fabricated X-62 Marksman? 16725 | -5/Factory | Fabricated M-13 Machinist (x1) 16859 | -5/Factory | Fabricated X-62 Marksman? 17393 | -5/Factory | Identified exit to Extension 17393 | -5/Factory | Discovered exit to Extension (range 15) 17903 | -5/Factory | Lost 4 parts (1p3u) 18163 | -5/Factory | System corruption reached 10% 18241 | -5/Factory | Discovered exit to Factory (range 15) 18352 | -5/Factory | Spotted B-75 Beast 18450 | -5/Factory | Lost 5 parts (1p1n2u1w) 18481 | -5/Factory | Core integrity fell below 50% 18569 | -5/Factory | Lost 5 parts (5u) 18597 | -5/Factory | Destroyed B-75 Beast 18786 | -5/Factory | Core integrity fell below 20% 19084 | -5/Factory | Destroyed by Y-64 Sentinel with Wave Gun Last Messages --------------- 18980_ System corrupted: Energy discharge (-40). 18988_ Acquired Antigrav System. 18990_ Acquired 9 matter. 18995_ Acquired 54 matter. 18996_ R-10 Processor collects Hpw. Shock Rifle. 19000_ R-10 Processor collects Imp. Target Analyzer. 19003_ TBXJ8FPDMZ5RAHHGN5#H4VQ3SDXMQOWKFEE/ 19004_ R-10 Processor collects Imp. Heat Sink. 19004_ Acquired Mic. Fission Core. 19011_ R-10 Processor collects Imp. Heat Sink. 19043_ System corrupted: FCS attempts to trigger Wave Gun. 19043_ System corrupted: Wave Gun misfires. 19077_ Penetrated by Slug. 19077_ Antigrav System destroyed. 19081_ Penetrated by Slug. 19081_ K-01 Serf destroyed. 19083_ K-01 Serf collects debris. 19084_ Critical hit (Burn: +37). Map ----- +----------------------------------------------------+ | ?#??########## #???########+##???????? | | ???#???#?????#######+########## *% | #???????# | | ??????#?#????#??## # #????#??? | | ??????#?#?#?##???# # [ %%%#?#?????? | | ??????#???????#### # [ %% ##??##?#? | | ?????????? + [ !##????#?? | | ???????????####### # ##??##??? | | ???? ????????????######## #! %##?????#? | | ?????#?????????#??????#?# # %##????#?? | | ??????????#??#??#????##?# ############?#????? | | ????????#?#?????#???#???# ## #%#%#?????? | | ?????? ???#??#????????#?# ##### ## ##?????? | | ????????????##????#?????#k #???# ###? #?#????? | | ?????????#?# ??? ????# ###?##?#??###?????? | | ???????????# !????#k ##?#??#???????????? | | ???????????# = ! ???# ###???????????????? | | ??????????# !! ??# #?#?????????????? | | ???????????# # #???????????????? | | ???????????# + < #???????????????? | | ???????????????"""""""" # #???????????????? | | ????????????????? # #???????????????? | | ??????????????? ?? ?#Y ###???????????????? | | ?????????????? ??? ?# #?????????????????? | | ??????????????" ???? ??# k #?????????????????? | | ??????????????????? ??# m #?????????????????? | | ???????????????????##???#@ #?????????????????? | | ????????????????????????# k#?????????????????? | | ????????????????????????# #?????????????????? | | ????????????????????????#u! #?????????????????? | | ????????????????????????#= #?????????????????? | | ????????????????????????# #?????????????????? | | ????????????????????????+ +?????????????????? | | ????????????????????????# #??????????[??????? | | ????????????????????????# #?????????????????? | | ????????????????????????? #?????????????????? | | ????????????????????????? #?????????????????? | | ????????????????????????? #?????????????????? | | ????????????????????????? #?????????????????? | | ????????????????????????? #?????????????????? | | ????????????????????????? A??????????????????? | | ????????????????????????? ??????""????????????? | | ??????????????????????????????????T"????????????? | | ????????????????????????????????????????????????? | | ????????????????????????????????????????????????? | | ????????????????????????????????????????????????? | | ????????????????????????????????????????????????? | | ????????????????????????????????????????????????? | | ????????????????????????????[???????????????????? | | ????????????????????????????????????????????????? | | ????????????????????????????????????????????????? | +----------------------------------------------------+ Best States ------------- Heat Dissipation 124 Energy Generation 37 Energy Capacity 395 Matter Stores 300 Matter Capacity 300 Sight Range 16 Robot Scan Range 15 Terrain Scan Range 16 Terrain Scan Density 10 Jamming Range 14 Armor Coverage 700 Resistance: KI 35 Resistance: TH 35 Resistance: EX 35 Resistance: EM 35 Resistance: I 35 Resistance: S 35 Resistance: P 35 Point Defense Rating 80 Phase Shifting 5 Evasion (%) 45 Core Analysis 6 Recoil Reduction 5 Matter Filtering 30 Offensive Hacking 30 Authchip Count 2 Item Schematics ----------------- Hcp. Storage Unit | -10/Materials | Hacked Huge Storage Unit | -10/Materials | Hacked Cargo Storage Unit | -10/Materials | Hacked Adv. Drone Bay | -7/Recycling | Hacked Gatling Laser | -7/Recycling | Hacked KE Penetrator | -7/Recycling | Hacked Neutrino Core | -7/Recycling | Hacked Proton Missile Launcher | -7/Recycling | Hacked Imp. Lightning Gun | -5/Factory | Extracted Lrn. Proton Cannon | -5/Factory | Extracted Proton Cannon | -5/Factory | Extracted Angular Momentum Engine | -5/Factory | Extracted Imp. Plasma Cutter | -5/Factory | Extracted Imp. Proton Missile Launcher | -5/Factory | Extracted Smartbomb Launcher | -5/Factory | Extracted Hacking Suite | -5/Factory | Extracted Imp. Reaction Control System | -5/Factory | Extracted Imp. Heavy Armor Plating | -5/Factory | Extracted Imp. Component Analysis Suite | -5/Factory | Extracted Imp. Launcher Guidance Computer | -5/Factory | Extracted Adv. Salvage Targeting Computer | -5/Factory | Extracted Hyp. Railgun | -5/Factory | Hacked Adv. Component Analysis Suite | -5/Factory | Hacked Robot Schematics ------------------ W-16 Scout | -10/Materials | Hacked S-10 Pest | -10/Materials | Hacked G-34 Mercenary | -10/Materials | Hacked M-13 Machinist | -10/Materials | Hacked X-62 Marksman | -7/Recycling | Hacked Fabricated ------------ X-62 Marksman | x2 | -5/Factory M-13 Machinist | x1 | -5/Factory X-62 Marksman | x2 | -5/Factory Repaired ---------- Nothing Studied --------- None Alien Tech Used ----------------- None Achievements -------------- None Challenges ------------ None Game ------ Seed ArmorThermicObliterator Manual? 0 Play Time 01:08:32 Cumulative 325.4 hours Start 2026.02.09 @ 08:26:42 End 2026.02.09 @ 09:34:57 Sessions 1 Manual Loads 0 Difficulty Explorer Special Mode None Game No. 512 Rogue 0 Adventurer 0 Explorer 512 Win Type - Total 0 Types 0/0/0/0/0/0/0/0/0/0 Lore% 77 Gallery% 70 Achievement% 56 Wizard Run 0 Options --------- Layout 1 ASCII 0 Keyboard 0 Movement Mouse Keybinds 1 Fullscreen 1 Font 24/Smallcaps Map View 50x35 Zoom Use 0% Tactical HUD 1 Map Filters NONE Filters NONE Steam 1 RUN: bb5b6e4b-af48-4302-b98b-aa84fcd10860